[Event "Titled Tuesday Blitz February 21 Late 2023"]
[White "Sielecki, Christof"]
[Black "Szyszylo, Rafal"]
[WhiteFideId "4620437"]
[BlackFideId "1109626"]
[WhiteElo "2419"]
[BlackElo "2091"]
[Result "0-1"]
[Round "03"]
[TimeControl "180+2"]
[Date "2023.02.21"]
[WhiteClock "0:00:16"]
[BlackClock "0:00:07"]

1. e4 {[%clk 0:02:57]}  d6 {[%clk 0:02:59]} 2. d4 {[%clk 0:02:57]}  g6 {[%clk 0:02:58]} 3. Nc3 {[%clk 0:02:57]}  Nf6 {[%clk 0:02:59]} 4. f4 {[%clk 0:02:57]}  Bg7 {[%clk 0:02:58]} 5. Nf3 {[%clk 0:02:57]}  O-O {[%clk 0:02:59]} 6. Bd3 {[%clk 0:02:57]}  Na6 {[%clk 0:02:59]} 7. O-O {[%clk 0:02:56]}  c5 {[%clk 0:03:00]} 8. d5 {[%clk 0:02:56]}  Bg4 {[%clk 0:02:59]} 9. h3 {[%clk 0:02:55]}  Bxf3 {[%clk 0:02:59]} 10. Rxf3 {[%clk 0:02:56]}  Rc8 {[%clk 0:02:56]} 11. Bc4 {[%clk 0:02:45]}  Nd7 {[%clk 0:02:55]} 12. a4 {[%clk 0:02:41]}  Nb6 {[%clk 0:02:23]} 13. Bf1 {[%clk 0:02:40]}  c4 {[%clk 0:02:22]} 14. Be3 {[%clk 0:02:31]}  Nc5 {[%clk 0:02:13]} 15. Bd4 {[%clk 0:02:26]}  a5 {[%clk 0:01:58]} 16. Bxg7 {[%clk 0:02:12]}  Kxg7 {[%clk 0:01:59]} 17. Qd4+ {[%clk 0:02:08]}  Kg8 {[%clk 0:01:52]} 18. e5 {[%clk 0:02:06]}  Qd7 {[%clk 0:01:36]} 19. Re1 {[%clk 0:01:46]}  Nbxa4 {[%clk 0:01:30]} 20. e6 {[%clk 0:01:24]}  fxe6 {[%clk 0:01:28]} 21. dxe6 {[%clk 0:01:06]}  Qc6 {[%clk 0:00:42]} 22. Nd5 {[%clk 0:01:03]}  Rce8 {[%clk 0:00:35]} 23. f5 {[%clk 0:01:02]}  Nb6 {[%clk 0:00:23]} 24. Nxb6 {[%clk 0:00:47]}  Qxb6 {[%clk 0:00:24]} 25. fxg6 {[%clk 0:00:34]}  hxg6 {[%clk 0:00:24]} 26. Rg3 {[%clk 0:00:24]}  Rf6 {[%clk 0:00:23]} 27. Kh2 {[%clk 0:00:20]}  Na4 {[%clk 0:00:20]} 28. Qh4 {[%clk 0:00:16]}  Kg7 {[%clk 0:00:19]} 29. Qxc4 {[%clk 0:00:09]}  Qb4 {[%clk 0:00:16]} 30. Qxb4 {[%clk 0:00:07]}  axb4 {[%clk 0:00:17]} 31. b3 {[%clk 0:00:08]}  Nc3 {[%clk 0:00:17]} 32. Bc4 {[%clk 0:00:08]}  b5 {[%clk 0:00:16]} 33. Bd3 {[%clk 0:00:09]}  d5 {[%clk 0:00:12]} 34. Rg4 {[%clk 0:00:09]}  Rd8 {[%clk 0:00:10]} 35. Rxb4 {[%clk 0:00:08]}  d4 {[%clk 0:00:09]} 36. Re5 {[%clk 0:00:07]}  Rd6 {[%clk 0:00:08]} 37. Rexb5 {[%clk 0:00:07]}  Nxb5 {[%clk 0:00:07]} 38. Rxb5 {[%clk 0:00:08]}  Rdxe6 {[%clk 0:00:07]} 39. Rd5 {[%clk 0:00:08]}  Rd6 {[%clk 0:00:07]} 40. Re5 {[%clk 0:00:09]}  Rfe6 {[%clk 0:00:07]} 41. Rc5 {[%clk 0:00:08]}  Re3 {[%clk 0:00:06]} 42. b4 {[%clk 0:00:09]}  e5 {[%clk 0:00:06]} 43. b5 {[%clk 0:00:09]}  e4 {[%clk 0:00:06]} 44. Bc4 {[%clk 0:00:09]}  Rc3 {[%clk 0:00:07]} 45. Rc7+ {[%clk 0:00:08]}  Kf6 {[%clk 0:00:07]} 46. Rf7+ {[%clk 0:00:06]}  Ke5 {[%clk 0:00:07]} 47. Bb3 {[%clk 0:00:07]}  d3 {[%clk 0:00:07]} 48. Re7+ {[%clk 0:00:06]}  Kd4 {[%clk 0:00:07]} 49. b6 {[%clk 0:00:05]}  Rxb6 {[%clk 0:00:06]} 50. Rd7+ {[%clk 0:00:04]}  Ke3 {[%clk 0:00:06]} 51. Re7 {[%clk 0:00:04]}  d2 {[%clk 0:00:07]} 52. Bd5 {[%clk 0:00:04]}  d1=Q {[%clk 0:00:06]} 53. Rxe4+ {[%clk 0:00:05]}  Kd2 {[%clk 0:00:04]} 54. Rd4+ {[%clk 0:00:05]}  Kxc2 {[%clk 0:00:05]} 55. Be4+ {[%clk 0:00:06]}  Kc1 {[%clk 0:00:05]} 56. Rxd1+ {[%clk 0:00:06]}  Kxd1 {[%clk 0:00:06]} 57. Bf3+ {[%clk 0:00:07]}  Kd2 {[%clk 0:00:06]} 58. Kg3 {[%clk 0:00:08]}  Rc4 {[%clk 0:00:06]} 59. h4 {[%clk 0:00:08]}  Rbb4 {[%clk 0:00:05]} 60. Kh3 {[%clk 0:00:09]}  Rd4 {[%clk 0:00:05]} 61. Kg3 {[%clk 0:00:10]}  Ke3 {[%clk 0:00:05]} 62. h5 {[%clk 0:00:10]}  gxh5 {[%clk 0:00:05]} 63. Bxh5 {[%clk 0:00:11]}  Rf4 {[%clk 0:00:05]} 64. Bf3 {[%clk 0:00:12]}  Rxf3+ {[%clk 0:00:05]} 65. gxf3 {[%clk 0:00:13]}  Rf4 {[%clk 0:00:05]} 66. Kg2 {[%clk 0:00:13]}  Rxf3 {[%clk 0:00:06]} 67. Kg1 {[%clk 0:00:14]}  Rf2 {[%clk 0:00:06]} 68. Kh1 {[%clk 0:00:14]}  Kf3 {[%clk 0:00:07]} 69. Kg1 {[%clk 0:00:15]}  Kg3 {[%clk 0:00:07]} 70. Kh1 {[%clk 0:00:16]}  Rf1# {[%clk 0:00:07]} 0-1


[Site "https://www.chess.com"]

[Event "Titled Tuesday Blitz February 21 Late 2023"]
[White "Manelyuk, Daniil"]
[Black "Rian, Kapriaga"]
[WhiteFideId "44173920"]
[BlackFideId "7103263"]
[WhiteElo "2302"]
[BlackElo "2089"]
[Result "1-0"]
[Round "03"]
[TimeControl "180+2"]
[Date "2023.02.21"]
[WhiteClock "0:00:22"]
[BlackClock "0:00:05"]

1. e4 {[%clk 0:02:50]}  c6 {[%clk 0:02:56]} 2. d4 {[%clk 0:02:50]}  d5 {[%clk 0:02:55]} 3. e5 {[%clk 0:02:50]}  Bf5 {[%clk 0:02:53]} 4. h4 {[%clk 0:02:50]}  h5 {[%clk 0:02:52]} 5. Bd3 {[%clk 0:02:50]}  Bxd3 {[%clk 0:02:51]} 6. Qxd3 {[%clk 0:02:51]}  e6 {[%clk 0:02:49]} 7. Bg5 {[%clk 0:02:49]}  Qb6 {[%clk 0:02:48]} 8. Nd2 {[%clk 0:02:48]}  Qa6 {[%clk 0:02:43]} 9. c4 {[%clk 0:02:46]}  Ne7 {[%clk 0:02:36]} 10. Ne2 {[%clk 0:02:45]}  Nf5 {[%clk 0:02:35]} 11. O-O {[%clk 0:02:45]}  Nd7 {[%clk 0:02:31]} 12. a3 {[%clk 0:02:44]}  Nb6 {[%clk 0:02:23]} 13. Rfc1 {[%clk 0:02:43]}  dxc4 {[%clk 0:02:18]} 14. Nxc4 {[%clk 0:02:42]}  Nxc4 {[%clk 0:02:16]} 15. Rxc4 {[%clk 0:02:42]}  Be7 {[%clk 0:02:09]} 16. Rac1 {[%clk 0:02:32]}  Rd8 {[%clk 0:02:00]} 17. Qf3 {[%clk 0:02:28]}  Nxh4 {[%clk 0:01:39]} 18. Bxh4 {[%clk 0:02:24]}  Bxh4 {[%clk 0:01:38]} 19. Qf4 {[%clk 0:02:14]}  Be7 {[%clk 0:01:33]} 20. Ng3 {[%clk 0:02:14]}  g6 {[%clk 0:01:29]} 21. Ne4 {[%clk 0:02:12]}  Qb6 {[%clk 0:00:53]} 22. b4 {[%clk 0:02:11]}  a5 {[%clk 0:00:44]} 23. R1c3 {[%clk 0:01:38]}  axb4 {[%clk 0:00:43]} 24. axb4 {[%clk 0:01:38]}  Kf8 {[%clk 0:00:35]} 25. Rf3 {[%clk 0:01:30]}  Rh7 {[%clk 0:00:30]} 26. Nd6 {[%clk 0:00:50]}  Bxd6 {[%clk 0:00:23]} 27. exd6 {[%clk 0:00:50]}  Qb5 {[%clk 0:00:11]} 28. Rc5 {[%clk 0:00:45]}  Qxb4 {[%clk 0:00:07]} 29. Qe5 {[%clk 0:00:25]}  Kg8 {[%clk 0:00:05]} 30. Kh2 {[%clk 0:00:22]} 1-0


[Site "https://www.chess.com"]

[Event "Titled Tuesday Blitz February 21 Late 2023"]
[White "Zeman, Matyas"]
[Black "Shapiro, Viktor"]
[WhiteFideId "364398"]
[BlackFideId "4175700"]
[WhiteElo "2296"]
[BlackElo "2192"]
[Result "0-1"]
[Round "03"]
[TimeControl "180+2"]
[Date "2023.02.21"]
[WhiteClock "0:00:03"]
[BlackClock "0:00:39"]

1. d4 {[%clk 0:03:00]}  Nf6 {[%clk 0:03:00]} 2. Nf3 {[%clk 0:02:50]}  c5 {[%clk 0:03:00]} 3. d5 {[%clk 0:02:50]}  e6 {[%clk 0:03:00]} 4. Nc3 {[%clk 0:02:51]}  exd5 {[%clk 0:02:58]} 5. Nxd5 {[%clk 0:02:52]}  Nxd5 {[%clk 0:02:59]} 6. Qxd5 {[%clk 0:02:52]}  d6 {[%clk 0:03:00]} 7. e4 {[%clk 0:02:46]}  Nc6 {[%clk 0:03:00]} 8. Ng5 {[%clk 0:02:47]}  Qc7 {[%clk 0:02:58]} 9. Bc4 {[%clk 0:02:46]}  Ne5 {[%clk 0:02:58]} 10. Bb5+ {[%clk 0:02:46]}  Bd7 {[%clk 0:02:59]} 11. Bxd7+ {[%clk 0:02:34]}  Qxd7 {[%clk 0:02:59]} 12. f4 {[%clk 0:02:30]}  Nc6 {[%clk 0:02:59]} 13. c3 {[%clk 0:02:18]}  h6 {[%clk 0:02:59]} 14. Nf3 {[%clk 0:02:17]}  Qe6 {[%clk 0:02:57]} 15. O-O {[%clk 0:02:13]}  Qxd5 {[%clk 0:02:56]} 16. exd5 {[%clk 0:02:14]}  Ne7 {[%clk 0:02:55]} 17. Re1 {[%clk 0:02:13]}  Kd7 {[%clk 0:02:54]} 18. c4 {[%clk 0:02:09]}  g6 {[%clk 0:02:50]} 19. g4 {[%clk 0:01:42]}  Bg7 {[%clk 0:02:49]} 20. Rb1 {[%clk 0:01:38]}  b5 {[%clk 0:02:46]} 21. b3 {[%clk 0:01:38]}  Rab8 {[%clk 0:02:43]} 22. Bd2 {[%clk 0:01:37]}  Rb7 {[%clk 0:02:32]} 23. Rbc1 {[%clk 0:01:22]}  bxc4 {[%clk 0:02:29]} 24. Rxc4 {[%clk 0:01:21]}  Nxd5 {[%clk 0:02:26]} 25. Rd1 {[%clk 0:01:21]}  Kc6 {[%clk 0:02:20]} 26. Rdc1 {[%clk 0:00:55]}  Nb6 {[%clk 0:02:05]} 27. R4c2 {[%clk 0:00:48]}  Re8 {[%clk 0:01:56]} 28. Kf2 {[%clk 0:00:48]}  Re4 {[%clk 0:01:53]} 29. Ba5 {[%clk 0:00:24]}  Rxf4 {[%clk 0:01:48]} 30. b4 {[%clk 0:00:20]}  Nd7 {[%clk 0:01:38]} 31. Kg3 {[%clk 0:00:19]}  Re4 {[%clk 0:01:35]} 32. Rd1 {[%clk 0:00:14]}  Ne5 {[%clk 0:01:25]} 33. bxc5 {[%clk 0:00:12]}  dxc5 {[%clk 0:01:19]} 34. Nd4+ {[%clk 0:00:12]}  Rxd4 {[%clk 0:00:45]} 35. Rxd4 {[%clk 0:00:13]}  Nd7 {[%clk 0:00:43]} 36. Rdc4 {[%clk 0:00:06]}  Be5+ {[%clk 0:00:40]} 37. Kf3 {[%clk 0:00:04]}  Rb5 {[%clk 0:00:40]} 38. Bc3 {[%clk 0:00:03]}  Kd5 {[%clk 0:00:39]} 39. Bxe5 {[%clk 0:00:03]}  Nxe5+ {[%clk 0:00:39]} 0-1


[Site "https://www.chess.com"]

[Event "Titled Tuesday Blitz February 21 Late 2023"]
[White "Vovk, Orest"]
[Black "Lerch, Philipp"]
[WhiteFideId "14113490"]
[BlackFideId "4654129"]
[WhiteElo "2315"]
[BlackElo "2305"]
[Result "0-1"]
[Round "03"]
[TimeControl "180+2"]
[Date "2023.02.21"]
[WhiteClock "0:00:11"]
[BlackClock "0:00:18"]

1. h4 {[%clk 0:02:40]}  d5 {[%clk 0:02:53]} 2. h5 {[%clk 0:02:38]}  h6 {[%clk 0:02:54]} 3. e4 {[%clk 0:02:35]}  dxe4 {[%clk 0:02:52]} 4. Nc3 {[%clk 0:02:28]}  Nf6 {[%clk 0:02:52]} 5. Qe2 {[%clk 0:02:24]}  Nc6 {[%clk 0:02:44]} 6. Nxe4 {[%clk 0:02:23]}  Nxe4 {[%clk 0:02:37]} 7. Qxe4 {[%clk 0:02:23]}  Qd4 {[%clk 0:02:26]} 8. Qxd4 {[%clk 0:02:23]}  Nxd4 {[%clk 0:02:26]} 9. Bd3 {[%clk 0:02:24]}  e5 {[%clk 0:02:25]} 10. Ne2 {[%clk 0:02:21]}  Ne6 {[%clk 0:02:22]} 11. Bb5+ {[%clk 0:02:15]}  c6 {[%clk 0:02:22]} 12. Bc4 {[%clk 0:02:15]}  Bc5 {[%clk 0:02:21]} 13. d3 {[%clk 0:02:15]}  Bd7 {[%clk 0:02:19]} 14. Be3 {[%clk 0:02:14]}  Be7 {[%clk 0:02:15]} 15. O-O-O {[%clk 0:02:12]}  O-O {[%clk 0:01:57]} 16. a3 {[%clk 0:01:57]}  b5 {[%clk 0:01:57]} 17. Ba2 {[%clk 0:01:56]}  a5 {[%clk 0:01:57]} 18. g4 {[%clk 0:01:38]}  b4 {[%clk 0:01:34]} 19. a4 {[%clk 0:01:38]}  c5 {[%clk 0:01:32]} 20. Bb3 {[%clk 0:01:30]}  Nd4 {[%clk 0:01:32]} 21. Bxd4 {[%clk 0:01:26]}  cxd4 {[%clk 0:01:33]} 22. Rhg1 {[%clk 0:01:24]}  Bg5+ {[%clk 0:01:31]} 23. Kb1 {[%clk 0:01:16]}  Ra6 {[%clk 0:01:13]} 24. f4 {[%clk 0:01:06]}  Bxf4 {[%clk 0:01:01]} 25. Nxf4 {[%clk 0:01:04]}  exf4 {[%clk 0:01:02]} 26. g5 {[%clk 0:00:56]}  Re8 {[%clk 0:00:39]} 27. Rdf1 {[%clk 0:00:49]}  hxg5 {[%clk 0:00:35]} 28. Rxg5 {[%clk 0:00:49]}  Rf6 {[%clk 0:00:36]} 29. Rfg1 {[%clk 0:00:35]}  f3 {[%clk 0:00:29]} 30. Rxg7+ {[%clk 0:00:23]}  Kh8 {[%clk 0:00:24]} 31. Bxf7 {[%clk 0:00:23]}  f2 {[%clk 0:00:22]} 32. Bxe8 {[%clk 0:00:21]}  f1=Q+ {[%clk 0:00:19]} 33. Rxf1 {[%clk 0:00:20]}  Rxf1+ {[%clk 0:00:20]} 34. Ka2 {[%clk 0:00:20]}  Be6+ {[%clk 0:00:20]} 35. b3 {[%clk 0:00:18]}  Kxg7 {[%clk 0:00:21]} 36. Kb2 {[%clk 0:00:16]}  Kf6 {[%clk 0:00:21]} 37. Bg6 {[%clk 0:00:16]}  Kg5 {[%clk 0:00:21]} 38. Be8 {[%clk 0:00:16]}  Bf5 {[%clk 0:00:21]} 39. Bf7 {[%clk 0:00:14]}  Kf4 {[%clk 0:00:21]} 40. h6 {[%clk 0:00:13]}  Rh1 {[%clk 0:00:21]} 41. h7 {[%clk 0:00:12]}  Bxh7 {[%clk 0:00:20]} 42. Bd5 {[%clk 0:00:12]}  Rg1 {[%clk 0:00:19]} 43. Bc4 {[%clk 0:00:12]}  Ke3 {[%clk 0:00:19]} 44. Bg8 {[%clk 0:00:11]}  Bxg8 {[%clk 0:00:18]} 0-1


[Site "https://www.chess.com"]

[Event "Titled Tuesday Blitz February 21 Late 2023"]
[White "Melian, Juan Sebastian"]
[Black "Skaric, Djuro"]
[WhiteFideId "3706575"]
[BlackFideId "934569"]
[WhiteElo "2293"]
[BlackElo "2334"]
[Result "1-0"]
[Round "03"]
[TimeControl "180+2"]
[Date "2023.02.21"]
[WhiteClock "0:00:43"]
[BlackClock "0:01:35"]

1. d4 {[%clk 0:02:57]}  d6 {[%clk 0:03:00]} 2. e4 {[%clk 0:02:54]}  g6 {[%clk 0:03:01]} 3. Nc3 {[%clk 0:02:53]}  Bg7 {[%clk 0:03:01]} 4. Be3 {[%clk 0:02:53]}  Nf6 {[%clk 0:03:01]} 5. f3 {[%clk 0:02:52]}  Nc6 {[%clk 0:03:01]} 6. Qd2 {[%clk 0:02:48]}  h5 {[%clk 0:02:56]} 7. Nge2 {[%clk 0:02:47]}  a6 {[%clk 0:02:56]} 8. O-O-O {[%clk 0:02:44]}  e5 {[%clk 0:02:55]} 9. Kb1 {[%clk 0:02:36]}  b5 {[%clk 0:02:51]} 10. dxe5 {[%clk 0:02:34]}  Nxe5 {[%clk 0:02:51]} 11. Nf4 {[%clk 0:02:32]}  Bd7 {[%clk 0:02:47]} 12. Nfd5 {[%clk 0:02:28]}  Be6 {[%clk 0:02:32]} 13. Bg5 {[%clk 0:01:53]}  O-O {[%clk 0:02:20]} 14. f4 {[%clk 0:01:43]}  Nc4 {[%clk 0:02:17]} 15. Bxc4 {[%clk 0:01:43]}  bxc4 {[%clk 0:02:16]} 16. e5 {[%clk 0:01:44]}  dxe5 {[%clk 0:02:03]} 17. fxe5 {[%clk 0:01:39]}  Nxd5 {[%clk 0:02:02]} 18. Bxd8 {[%clk 0:01:38]}  Nxc3+ {[%clk 0:02:02]} 19. Qxc3 {[%clk 0:01:37]}  Rfxd8 {[%clk 0:02:02]} 20. h3 {[%clk 0:01:23]}  c6 {[%clk 0:02:01]} 21. Rhf1 {[%clk 0:01:19]}  Rd5 {[%clk 0:02:01]} 22. Rxd5 {[%clk 0:01:18]}  Bxd5 {[%clk 0:02:01]} 23. Rf2 {[%clk 0:01:14]}  Re8 {[%clk 0:02:00]} 24. Re2 {[%clk 0:01:15]}  f5 {[%clk 0:01:48]} 25. b3 {[%clk 0:01:13]}  cxb3 {[%clk 0:01:45]} 26. axb3 {[%clk 0:01:14]}  Re6 {[%clk 0:01:44]} 27. Qa5 {[%clk 0:00:50]}  Bf8 {[%clk 0:01:38]} 28. Qxa6 {[%clk 0:00:48]}  c5 {[%clk 0:01:39]} 29. Qc8 {[%clk 0:00:45]}  Kf7 {[%clk 0:01:36]} 30. Qd7+ {[%clk 0:00:43]}  Be7 {[%clk 0:01:35]} 31. Qxd5 {[%clk 0:00:44]}  g5 {[%clk 0:01:35]} 32. Rf2 {[%clk 0:00:42]}  f4 {[%clk 0:01:35]} 33. g3 {[%clk 0:00:43]} 1-0


[Site "https://www.chess.com"]

[Event "Titled Tuesday Blitz February 21 Late 2023"]
[White "mohsengabr2002"]
[Black "Fiorito, Francisco"]
[BlackFideId "180165"]
[WhiteElo "2349"]
[BlackElo "2305"]
[Result "0-1"]
[Round "03"]
[TimeControl "180+2"]
[Date "2023.02.21"]
[WhiteClock "0:00:14"]
[BlackClock "0:00:19"]

1. b3 {[%clk 0:03:00]}  e5 {[%clk 0:02:58]} 2. e3 {[%clk 0:02:59]}  d5 {[%clk 0:02:58]} 3. Bb2 {[%clk 0:02:59]}  Bd6 {[%clk 0:02:58]} 4. c4 {[%clk 0:02:59]}  c6 {[%clk 0:02:58]} 5. cxd5 {[%clk 0:02:59]}  cxd5 {[%clk 0:02:59]} 6. f4 {[%clk 0:02:59]}  exf4 {[%clk 0:02:38]} 7. Bb5+ {[%clk 0:02:59]}  Nc6 {[%clk 0:02:33]} 8. Bxg7 {[%clk 0:02:57]}  Qh4+ {[%clk 0:02:22]} 9. Kf1 {[%clk 0:02:57]}  fxe3 {[%clk 0:02:16]} 10. Qe1 {[%clk 0:02:55]}  Qf4+ {[%clk 0:01:56]} 11. Nf3 {[%clk 0:02:53]}  Ne7 {[%clk 0:01:32]} 12. Bxh8 {[%clk 0:02:53]}  Bg4 {[%clk 0:01:32]} 13. Qxe3 {[%clk 0:02:51]}  Qf5 {[%clk 0:01:32]} 14. Bb2 {[%clk 0:02:39]}  O-O-O {[%clk 0:01:32]} 15. Bd3 {[%clk 0:02:33]}  Qh5 {[%clk 0:01:30]} 16. Nc3 {[%clk 0:02:31]}  d4 {[%clk 0:01:27]} 17. Nxd4 {[%clk 0:02:30]}  Bc5 {[%clk 0:01:12]} 18. Nce2 {[%clk 0:02:12]}  Qd5 {[%clk 0:00:57]} 19. Rc1 {[%clk 0:01:57]}  Bxe2+ {[%clk 0:00:14]} 20. Bxe2 {[%clk 0:01:56]}  Bxd4 {[%clk 0:00:14]} 21. Bxd4 {[%clk 0:01:54]}  Qxd4 {[%clk 0:00:15]} 22. Qxe7 {[%clk 0:01:46]}  Qf4+ {[%clk 0:00:14]} 23. Bf3 {[%clk 0:01:41]}  Qxd2 {[%clk 0:00:14]} 24. Qe1 {[%clk 0:01:39]}  Qd3+ {[%clk 0:00:13]} 25. Qe2 {[%clk 0:01:37]}  Qd6 {[%clk 0:00:10]} 26. Kf2 {[%clk 0:01:35]}  Qd4+ {[%clk 0:00:09]} 27. Kf1 {[%clk 0:01:24]}  Kb8 {[%clk 0:00:07]} 28. Bxc6 {[%clk 0:01:21]}  bxc6 {[%clk 0:00:08]} 29. h4 {[%clk 0:01:17]}  Rd6 {[%clk 0:00:07]} 30. Qe8+ {[%clk 0:00:54]}  Kb7 {[%clk 0:00:07]} 31. Qxf7+ {[%clk 0:00:51]}  Kb6 {[%clk 0:00:06]} 32. Rh3 {[%clk 0:00:42]}  Rf6+ {[%clk 0:00:06]} 33. Qxf6 {[%clk 0:00:39]}  Qxf6+ {[%clk 0:00:07]} 34. Rf3 {[%clk 0:00:39]}  Qxh4 {[%clk 0:00:07]} 35. Rc4 {[%clk 0:00:38]}  Qh1+ {[%clk 0:00:07]} 36. Kf2 {[%clk 0:00:38]}  Qh6 {[%clk 0:00:08]} 37. a4 {[%clk 0:00:38]}  Qd2+ {[%clk 0:00:08]} 38. Kg3 {[%clk 0:00:37]}  Qd6+ {[%clk 0:00:09]} 39. Kh3 {[%clk 0:00:36]}  Qh6+ {[%clk 0:00:09]} 40. Kg3 {[%clk 0:00:36]}  Qg5+ {[%clk 0:00:10]} 41. Kf2 {[%clk 0:00:36]}  Qd2+ {[%clk 0:00:10]} 42. Kf1 {[%clk 0:00:35]}  Qd1+ {[%clk 0:00:10]} 43. Kf2 {[%clk 0:00:36]}  h5 {[%clk 0:00:10]} 44. Rcf4 {[%clk 0:00:32]}  Qd2+ {[%clk 0:00:10]} 45. Kg3 {[%clk 0:00:32]}  Qd6 {[%clk 0:00:10]} 46. Kh4 {[%clk 0:00:32]}  Qg6 {[%clk 0:00:11]} 47. Rg3 {[%clk 0:00:28]}  Qh6 {[%clk 0:00:12]} 48. Rf5 {[%clk 0:00:28]}  Qh8 {[%clk 0:00:11]} 49. Rxh5 {[%clk 0:00:27]}  Qd4+ {[%clk 0:00:12]} 50. Kh3 {[%clk 0:00:26]}  Qd7+ {[%clk 0:00:13]} 51. Kh2 {[%clk 0:00:25]}  Qf7 {[%clk 0:00:13]} 52. Rh4 {[%clk 0:00:25]}  Qc7 {[%clk 0:00:13]} 53. Rg4 {[%clk 0:00:24]}  c5 {[%clk 0:00:13]} 54. Rg7 {[%clk 0:00:22]}  Qe5 {[%clk 0:00:13]} 55. Rg6+ {[%clk 0:00:22]}  Ka5 {[%clk 0:00:13]} 56. Rg5 {[%clk 0:00:23]}  Qd6 {[%clk 0:00:14]} 57. Rg6 {[%clk 0:00:21]}  Qf4 {[%clk 0:00:14]} 58. Kh3 {[%clk 0:00:21]}  Qf5+ {[%clk 0:00:14]} 59. R3g4 {[%clk 0:00:21]}  a6 {[%clk 0:00:11]} 60. Rg5 {[%clk 0:00:21]}  Qd3+ {[%clk 0:00:11]} 61. Rg3 {[%clk 0:00:21]}  Qd7+ {[%clk 0:00:11]} 62. Kh2 {[%clk 0:00:21]}  Qd6 {[%clk 0:00:11]} 63. Kg1 {[%clk 0:00:20]}  Kb4 {[%clk 0:00:11]} 64. R5g4+ {[%clk 0:00:20]}  Ka3 {[%clk 0:00:11]} 65. b4+ {[%clk 0:00:20]}  Kb2 {[%clk 0:00:11]} 66. bxc5 {[%clk 0:00:19]}  Qxc5+ {[%clk 0:00:12]} 67. Kh2 {[%clk 0:00:19]}  Qh5+ {[%clk 0:00:12]} 68. Kg1 {[%clk 0:00:19]}  Qc5+ {[%clk 0:00:13]} 69. Kf1 {[%clk 0:00:19]}  Kc1 {[%clk 0:00:13]} 70. Re4 {[%clk 0:00:17]}  Qf5+ {[%clk 0:00:12]} 71. Rf3 {[%clk 0:00:14]}  Qxe4 {[%clk 0:00:12]} 72. Kf2 {[%clk 0:00:15]}  Kd1 {[%clk 0:00:12]} 73. g3 {[%clk 0:00:14]}  Qe1+ {[%clk 0:00:13]} 74. Kg2 {[%clk 0:00:15]}  Qe4 {[%clk 0:00:14]} 75. Kf2 {[%clk 0:00:15]}  Qxa4 {[%clk 0:00:14]} 76. Rf4 {[%clk 0:00:15]}  Qd7 {[%clk 0:00:14]} 77. Kf3 {[%clk 0:00:15]}  Qd3+ {[%clk 0:00:14]} 78. Kg4 {[%clk 0:00:15]}  Qg6+ {[%clk 0:00:14]} 79. Kf3 {[%clk 0:00:15]}  a5 {[%clk 0:00:15]} 80. g4 {[%clk 0:00:14]}  a4 {[%clk 0:00:15]} 81. Rxa4 {[%clk 0:00:14]}  Qf7+ {[%clk 0:00:14]} 82. Rf4 {[%clk 0:00:14]}  Qd5+ {[%clk 0:00:14]} 83. Kg3 {[%clk 0:00:14]}  Ke2 {[%clk 0:00:14]} 84. Rf5 {[%clk 0:00:13]}  Qd6+ {[%clk 0:00:15]} 85. Kh4 {[%clk 0:00:14]}  Ke3 {[%clk 0:00:15]} 86. Kg5 {[%clk 0:00:15]}  Qe7+ {[%clk 0:00:15]} 87. Rf6 {[%clk 0:00:15]}  Ke4 {[%clk 0:00:15]} 88. Kg6 {[%clk 0:00:15]}  Qe8+ {[%clk 0:00:16]} 89. Rf7 {[%clk 0:00:15]}  Ke5 {[%clk 0:00:16]} 90. g5 {[%clk 0:00:15]}  Ke6 {[%clk 0:00:16]} 91. Kh6 {[%clk 0:00:14]}  Qxf7 {[%clk 0:00:17]} 92. g6 {[%clk 0:00:14]}  Qf4+ {[%clk 0:00:18]} 93. Kh7 {[%clk 0:00:14]}  Kf6 {[%clk 0:00:18]} 94. g7 {[%clk 0:00:15]}  Qf5+ {[%clk 0:00:18]} 95. Kg8 {[%clk 0:00:15]}  Qg6 {[%clk 0:00:18]} 96. Kf8 {[%clk 0:00:14]}  Qxg7+ {[%clk 0:00:19]} 97. Ke8 {[%clk 0:00:14]}  Qe7# {[%clk 0:00:19]} 0-1


[Site "https://www.chess.com"]